Cogmind - Beta 16 @@@ ROGUE MODE // 2025.10.27 @ 13:48:31 Player: Moodge Result: Destroyed by S-10 Pest with Light Assault Rifle Performance ------------- Evolutions (1) 500 Regions Visited (5) 1000 Robots Destroyed (16) 80 Value Destroyed (401) 401 Prototype IDs (23) 460 Alien Tech Used (0) 0 Bonus (300) 300 TOTAL SCORE: 2741 Bonus ------- Aligned with FarCom 300 Cogmind --------- Core Integrity 0/400 Matter 300/300 Energy 100/100 System Corruption 0% Temperature Cool (0) Movement Core (3400) Ox67 Location -8/Mines Parts ------- > --- POWER (1) -------- (None) > --- PROPULSION (4) --- (None) > --- UTILITY (2) ------ Humpback > --- WEAPON (2) ------- Power Maul > --- INVENTORY (35) --- Aluminum Leg High-capacity Storage Unit Weapon Cycler Advanced ECM Suite Army-in-a-Box (30/30) Shock Rifle Gatling Laser Plasma Cannon Gauss Rifle Datajack Peak State ------------ > --- POWER ------------ (None) > --- PROPULSION ------- Aluminum Leg Aluminum Leg Aluminum Leg Aluminum Leg > --- UTILITY ---------- Modified TNC 0b10 Alert Chip > --- WEAPON ----------- Power Maul > --- INVENTORY -------- Aluminum Leg Large Storage Unit Weapon Cycler Advanced ECM Suite Gatling Laser [Rating: 21] Favorites ----------- Power Light Ion Engine Engine Light Ion Engine Power Core Light Nuclear Core Propulsion Aluminum Leg Leg Aluminum Leg Utility High-capacity Storage Unit Device Advanced ECM Suite Storage High-capacity Storage Unit Processor 0b10 Alert Chip Weapon Power Maul Energy Gun Medium Laser Ballistic Gun Assault Rifle Special Weapon Mining Laser Impact Weapon Power Maul Build | -11 -10 -9 -9 -9 -8 ------- Run | Yrd Mat Mat Min Exi Min Slots Evolved 2 | . . 2 . . . Power . | . . . . . . Propulsion 2 | . . 2 . . . Utility . | . . . . . . Weapon . | . . . . . . Parts Attached 26 | 6 4 10 3 3 . Power 4 | 1 1 2 . . . Engine 3 | 1 1 1 . . . Core 1 | . . 1 . . . Reactor . | . . . . . . Propulsion 9 | 2 1 5 1 . . Treads . | . . . . . . Leg 9 | 2 1 5 1 . . Wheel . | . . . . . . Hover . | . . . . . . Flight . | . . . . . . Utility 7 | 1 2 . 1 3 . Device 1 | . . . 1 . . Storage 4 | 1 2 . . 1 . Processor 2 | . . . . 2 . Hackware . | . . . . . . Protection . | . . . . . . Artifact . | . . . . . . Weapon 6 | 2 . 3 1 . . Energy Gun 1 | 1 . . . . . Energy Cannon . | . . . . . . Ballistic Gun 3 | 1 . 2 . . . Ballistic Cannon . | . . . . . . Launcher . | . . . . . . Special Weapon 1 | . . 1 . . . Impact Weapon 1 | . . . 1 . . Slashing Weapon . | . . . . . . Piercing Weapon . | . . . . . . Special Melee Weapon . | . . . . . . Unidentified Prototypes 2 | . . . . 2 . Parts Lost 15 | . 2 9 . . 4 Power 3 | . 1 2 . . . Propulsion 7 | . 1 2 . . 4 Utility . | . . . . . . Weapon 5 | . . 5 . . . Highest Loss Streak 5 | . 2 5 . . 3 To Critical Strikes . | . . . . . . Average Backups 5 | 1 3 3 5 8 9 Power . | . 1 . . . . Propulsion . | . . 1 . . 1 Utility 1 | . . . 1 3 4 Weapon 1 | 1 1 . 2 2 3 Tool/Special . | . . . . . . Unused Backups 9 | . . 2 . . 7 Power 1 | . . 1 . . . Propulsion 1 | . . 1 . . . Utility 3 | . . . . . 3 Weapon 3 | . . . . . 3 Tool/Special 1 | . . . . . 1 Average Slot Usage (%) 74 | . 88 75 75 69 41 Engine 5 | . 12 8 . . . Leg 34 | . 26 26 44 44 19 Device 2 | . . . 9 3 . Storage 15 | . 19 22 12 10 11 Energy Gun 3 | . 14 2 . . . Ballistic Gun 7 | . 14 14 . . . Impact Weapon 5 | . . . 9 11 11 Peak Build Rating 21 | 6 7 10 14 21 17 Average Rating 10 | 3 6 7 13 15 14 On Entrance 8 | . 6 7 6 14 17 Avg Prop Armor Cover (%) . | . . . . . . Naked Turns . | . . . . . . Heaviest Build 203 | 12 67 67 63 203 203 Greatest Support 40 | 20 20 40 40 40 40 Greatest Overweight (x) 67 | . 3 6 1 5 67 Average Overweight (x) 1 | . 1 2 1 1 14 Largest Inventory Capacity 35 | 8 20 20 20 35 35 Average Capacity 20 | 7 16 20 20 22 35 Most Carried 17 | 4 5 7 7 17 15 Average Carried 7 | 2 3 3 5 11 14 Final Capacity 35 | 8 20 20 20 35 35 Final Carried 15 | 2 4 1 7 14 15 Class Distribution -------------------- 47% | Scavenger-Mutant 41% | Mutant 11% | Hauler-Mutant Dominant Class ---------------- Mutant | -10/Materials Mutant | -9/Materials Scavenger-Mutant | -9/Mines Scavenger-Mutant | -9/Exiles Hauler-Mutant | -8/Mines Resources | -11 -10 -9 -9 -9 -8 ----------- Run | Yrd Mat Mat Min Exi Min Matter Collected 618 | 234 94 220 35 . 35 Remotely . | . . . . . . Salvage Created 539 | . 125 414 . . . Parts 41 | . 11 30 . . . Haulers Intercepted . | . . . . . . Recyclers Shooed 1 | . . 1 . . . Parts Field Recycled . | . . . . . . Retrieved Matter . | . . . . . . Parts Self-Destructed . | . . . . . . Prevented . | . . . . . . Parts Restored . | . . . . . . Kills | -11 -10 -9 -9 -9 -8 ------- Run | Yrd Mat Mat Min Exi Min Combat Hostiles Destroyed 12 | . 5 7 . . . Guns 12 | . 5 7 . . . Classes Destroyed 7 | . 3 4 . . . Worker 1 | . . 1 . . . Builder 1 | . . 1 . . . Recycler 1 | . . 1 . . . Watcher 1 | . 1 . . . . Swarmer 3 | . 3 . . . . Grunt 8 | . 2 6 . . . Sentry 1 | . . 1 . . . Best Kill Streak 4 | . 2 4 . . . Combat Bots Only 3 | . 2 3 . . . Max Kills in Single Turn 1 | . 1 1 . . . Gunslinging . | . . . . . . Exploded . | . . . . . . Melee . | . . . . . . Uniques/NPCs Destroyed . | . . . . . . Combat | -11 -10 -9 -9 -9 -8 -------- Run | Yrd Mat Mat Min Exi Min Hostile Shots Fired 243 | . 54 108 . . 81 Missed 54 | . 11 26 . . 17 Hits 189 | . 43 82 . . 64 Projectile 189 | . 43 82 . . 64 Critical Strikes 5 | . . 5 . . . Damage Taken 1997 | . 461 1044 . . 492 Core 516 | . 113 329 . . 74 Absorbed by Shields . | . . . . . . Core Remaining (%) 77 | 100 54 . . . . Volleys Fired 63 | . 22 41 . . . Largest 2 | . 2 2 . . . Hottest 100 | . 70 100 . . . Shots Fired 101 | . 44 57 . . . Gun 98 | . 44 54 . . . Cannon . | . . . . . . Launcher . | . . . . . . Special 3 | . . 3 . . . Kinetic 73 | . 22 51 . . . Thermal 28 | . 22 6 . . . Explosive . | . . . . . . Electromagnetic . | . . . . . . Robot Hit Streak 9 | . 9 7 . . . Robot Miss Streak 3 | . 3 2 . . . Penetration Max . | . . . . . . Secondary Targets 2 | . 2 . . . . Max Gunslinging Chain 1 | . 1 . . . . Shots Hit Robots 67 | . 27 40 . . . Core Hits 28 | . 9 19 . . . Critical Kills . | . . . . . . Critical Parts Destroyed . | . . . . . . Critical Strikes 2 | . 2 . . . . Burn 2 | . 2 . . . . Melee Attacks . | . . . . . . Impact . | . . . . . . Slashing . | . . . . . . Piercing . | . . . . . . Sneak Attacks . | . . . . . . Combat Hostiles . | . . . . . . Follow-up Attacks . | . . . . . . Damage Inflicted 864 | . 338 526 . . . Guns 816 | . 338 478 . . . Cannons . | . . . . . . Explosions . | . . . . . . Melee . | . . . . . . Ramming . | . . . . . . Kinetic 637 | . 197 440 . . . Thermal 227 | . 141 86 . . . Explosive . | . . . . . . Electromagnetic . | . . . . . . Impact . | . . . . . . Slashing . | . . . . . . Piercing . | . . . . . . Highest Corruption . | . . . . . . Average Corruption . | . . . . . . Corruption Purged . | . . . . . . Corruption Blocked . | . . . . . . Overload Shots . | . . . . . . Overflow Damage . | . . . . . . Projectiles . | . . . . . . Explosions . | . . . . . . Melee . | . . . . . . Knockbacks . | . . . . . . Impact . | . . . . . . Kinetic . | . . . . . . Secondary . | . . . . . . Self-Inflicted Damage . | . . . . . . Shots . | . . . . . . Rammed . | . . . . . . Targets Rammed . | . . . . . . Kicked . | . . . . . . Crushed . | . . . . . . Highest Temperature 137 | . 137 87 . . . Average Temperature 41 | . 47 28 . . . Received Heat Transfer 816 | . 177 639 . . . Siege Activations . | . . . . . . Martial Activations . | . . . . . . Shielding Activations . | . . . . . . Robots Disrupted . | . . . . . . Combat Hostiles . | . . . . . . Robots Corrupted . | . . . . . . Combat Hostiles . | . . . . . . Parts Fried . | . . . . . . Impact Corruptions . | . . . . . . Robots Melted . | . . . . . . Combat Hostiles . | . . . . . . Parts Melted . | . . . . . . Heat Transferred 766 | . 555 211 . . . Parts Sabotaged . | . . . . . . Parts Stolen . | . . . . . . Parts Stripped . | . . . . . . Power Chain Reactions . | . . . . . . Alert | -11 -10 -9 -9 -9 -8 ------- Run | Yrd Mat Mat Min Exi Min Maximum Alert Level . | . . . . . . Low Security (%) 100 | 100 100 100 100 . 100 Level 1 . | . . . . . . Level 2 . | . . . . . . Level 3 . | . . . . . . Level 4 . | . . . . . . Level 5 . | . . . . . . High Security . | . . . . . . Max Security . | . . . . . . Peak Influence 105 | . 105 63 . . 15 Initial . | . . . . . . Average 15 | . 34 12 . . 1 Influence Increases 398 | . 179 204 . . 15 Destroy 0b10 Robot/C 240 | . 100 140 . . . Destroy 0b10 Robot/NC 20 | . 5 15 . . . Destroy Leader 42 | . 22 20 . . . Successful Hack 20 | . 6 14 . . . Destroy Structure 1 | . 1 . . . . Lose Combat Pursuer 75 | . 45 15 . . 15 Influence Decreases 398 | . 179 204 . . 15 Time Decay 320 | . 159 151 . . 10 Lost Part 78 | . 20 53 . . 5 Squads Dispatched 3 | . . 2 1 . . Investigation 2 | . . 1 1 . . Extermination . | . . . . . . Reinforcement 1 | . . 1 . . . Assault . | . . . . . . Garrison . | . . . . . . Intercept . | . . . . . . Searches Triggered . | . . . . . . Construction Impeded . | . . . . . . Haulers Reinforced . | . . . . . . Active Scanning Responses . | . . . . . . Cargo Convoy Interrupts . | . . . . . . Stealth | -11 -10 -9 -9 -9 -8 --------- Run | Yrd Mat Mat Min Exi Min Distress Signals 3 | . 1 2 . . . Communications Jammed . | . . . . . . Distress Signals . | . . . . . . Times Spotted 30 | . 12 15 . . 3 Peak Tracking Total 6 | . 6 6 . . 3 Tactical Retreats 4 | . 2 1 . . 1 Traps | -11 -10 -9 -9 -9 -8 ------- Run | Yrd Mat Mat Min Exi Min Traps Triggered . | . . . . . . Indirectly . | . . . . . . Trap Hack Attempts . | . . . . . . Triggered . | . . . . . . Disarmed . | . . . . . . Reprogrammed . | . . . . . . Reused . | . . . . . . Traps Extracted . | . . . . . . Installed . | . . . . . . Triggered . | . . . . . . Machines | -11 -10 -9 -9 -9 -8 ---------- Run | Yrd Mat Mat Min Exi Min Machines Disabled . | . . . . . . Max in Single Turn . | . . . . . . Machines Repaired . | . . . . . . Machines Dismantled . | . . . . . . Machines Sabotaged . | . . . . . . Overloaded Fab Kills . | . . . . . . Hacking | -11 -10 -9 -9 -9 -8 --------- Run | Yrd Mat Mat Min Exi Min Machines Accessed 7 | . 2 2 1 2 . Terminals 4 | . 2 2 . . . Fabricators . | . . . . . . Repair Stations . | . . . . . . Recycling Units . | . . . . . . Scanalyzers . | . . . . . . Garrison Access . | . . . . . . Total Hacks 13 | . 3 7 1 2 . Successful 6 | . 1 2 1 2 . Failed 7 | . 2 5 . . . Catastrophic 1 | . . 1 . . . Database Lockouts . | . . . . . . Manual 10 | . 3 6 . 1 . Terminals 10 | . 3 7 . . . Fabricators . | . . . . . . Repair Stations . | . . . . . . Recycling Units . | . . . . . . Scanalyzers . | . . . . . . Garrison Access . | . . . . . . Terminal Hacks 4 | . . 1 1 2 . Record 1 | . . . . 1 . Open Door 1 | . . . 1 . . Alert Level 1 | . . 1 . . . Proto ID Catalog 1 | . . . . 1 . Fabricator Hacks . | . . . . . . Repair Station Hacks . | . . . . . . Recycling Unit Hacks . | . . . . . . Scanalyzer . | . . . . . . Garrison Access Hacks . | . . . . . . Unauthorized Hacks 2 | . 1 1 . . . Terminals 2 | . 1 1 . . . Assimilate 1 | . 1 . . . . Botnet 1 | . . 1 . . . Fabricators . | . . . . . . Repair Stations . | . . . . . . Recycling Units . | . . . . . . Scanalyzers . | . . . . . . Garrison Access . | . . . . . . Data Cores Recovered . | . . . . . . Used . | . . . . . . Hacking Detections 3 | . 1 2 . . . Full Trace Events 2 | . . 2 . . . Feedback Events . | . . . . . . Feedback Blocked . | . . . . . . Robot Schematics Acquired . | . . . . . . Robots Built . | . . . . . . Authchips . | . . . . . . Time . | . . . . . . Total Robot Build Rating . | . . . . . . Part Schematics Acquired . | . . . . . . Parts Built . | . . . . . . Authchips . | . . . . . . Time . | . . . . . . Total Part Build Rating . | . . . . . . Part Studies Acquired . | . . . . . . Parts Repaired . | . . . . . . Time . | . . . . . . Parts Recycled . | . . . . . . Recycled Matter . | . . . . . . Retrieved Matter . | . . . . . . Retrieved Components . | . . . . . . Parts Scanalyzed . | . . . . . . Part Schematics Acquired . | . . . . . . Parts Damaged . | . . . . . . Bothacking | -11 -10 -9 -9 -9 -8 ------------ Run | Yrd Mat Mat Min Exi Min Used RIF Installer . | . . . . . . Robots Hacked . | . . . . . . Non-combat . | . . . . . . Combat . | . . . . . . Robot Hacks Applied . | . . . . . . Relay Couplers Released . | . . . . . . Fabnet Peak Effective % . | . . . . . . Robots Rewired . | . . . . . . Allies Hacked . | . . . . . . Hacks Repelled . | . . . . . . Allies | -11 -10 -9 -9 -9 -8 -------- Run | Yrd Mat Mat Min Exi Min Total Allies . | . . . . . . Largest Group . | . . . . . . Highest-Rated Group . | . . . . . . Highest-Rated Ally . | . . . . . . Total Orders . | . . . . . . Ally Attacks . | . . . . . . Total Damage . | . . . . . . Kills . | . . . . . . Allies Corrupted . | . . . . . . Allies Melted . | . . . . . . Intel | -11 -10 -9 -9 -9 -8 ------- Run | Yrd Mat Mat Min Exi Min Active Infowar (turns) 10 | . . . 4 6 . T.N.C. 6 | . . . . 6 . ECM 4 | . . . 4 . . Robot Analysis Total . | . . . . . . Derelict Logs Recovered . | . . . . . . Drone Launches . | . . . . . . Drone Recoveries . | . . . . . . Exploration | -11 -10 -9 -9 -9 -8 ------------- Run | Yrd Mat Mat Min Exi Min Turns Passed 2723 | 61 547 780 258 956 121 Spaces Moved 1038 | 42 202 215 131 435 13 Core 5 | 4 . . . . 1 Treads . | . . . . . . Legs 1033 | 38 202 215 131 435 12 Wheels . | . . . . . . Hover . | . . . . . . Flight . | . . . . . . Fastest Speed 50 | 50 120 190 190 120 470 Average Speed 232 | 113 233 279 190 211 996 Slowest Speed 3400 | 120 330 540 190 470 3400 Overloaded Moves . | . . . . . . Propulsion Burnouts . | . . . . . . Robots Hopped . | . . . . . . Potential Cave-ins . | . . . . . . Cave-ins Triggered . | . . . . . . Exploration Rate (%) 29 | 3 39 25 31 72 5 Regions Visited 5 Branch Regions 3 Pre-discovered Areas . | . . . . . . Known Exits Taken . | . . . . . . Unknown Exits Taken 5 | 1 1 1 1 1 . Scrap Searched 1 | . . . . . 1 Spaces Dug . | . . . . . . Terrain Destroyed . | . . . . . . Melee . | . . . . . . Projectile . | . . . . . . AOE . | . . . . . . Terrain Rammed . | . . . . . . Walls Destroyed . | . . . . . . Machines Disabled . | . . . . . . Actions | -11 -10 -9 -9 -9 -8 --------- Run | Yrd Mat Mat Min Exi Min Total 1254 | 55 236 335 140 474 14 Wait 72 | . 2 56 . 14 . Move 1033 | 41 201 214 130 434 13 Hop . | . . . . . . Pick Up 46 | 8 6 9 7 15 1 Fast Attach . | . . . . . . Attach 20 | 6 4 8 1 1 . Detach . | . . . . . . Swap 9 | . . 3 2 4 . Drop 7 | . 1 4 . 2 . Fire 63 | . 22 41 . . . Melee . | . . . . . . Ram . | . . . . . . Kick . | . . . . . . Crush . | . . . . . . Escape Stasis . | . . . . . . Rewire 4 | . . . . 4 . Trap . | . . . . . . Miscellaneous . | . . . . . . Route ------- -11/Scrapyard -10/Materials (discovered 2 exits: *Mat / [*Min]) -9/Materials -9/Mines -9/Exiles -8/Mines History --------- Turn | Location | Event 2 | -11/Scrapyard | Met Revision 17 11 | -11/Scrapyard | Discovered new exit (range 16) 62 | -11/Scrapyard | Entered Materials 78 | -10/Materials | Discovered new exit (range 15) 158 | -10/Materials | Discovered new exit (range 14) 318 | -10/Materials | Build established: Mutant 609 | -10/Materials | Entered another Materials area 609 | -9/Materials | Evolved 2 slots: Propulsion x2 1119 | -9/Materials | Lost 5 parts (1p2n2w) 1142 | -9/Materials | Core integrity fell below 50% 1358 | -9/Materials | Discovered new exit (range 6) 1388 | -9/Materials | Core integrity fell below 20% 1389 | -9/Materials | Entered Mines 1402 | -9/Mines | Met a Derelict shopkeep closing up shop 1474 | -9/Mines | Build established: Scavenger-Mutant 1638 | -9/Mines | Deemed a non-threat by the Exiles lab entrance 1640 | -9/Mines | Discovered new exit (range 5) 1647 | -9/Mines | Entered Exiles 1699 | -9/Exiles | Met 8R-AWN 1741 | -9/Exiles | Met EX-HEX 1832 | -9/Exiles | Met EX-BIN 1864 | -9/Exiles | Aligned with FarCom system 1866 | -9/Exiles | Given EX-Vault access code 1914 | -9/Exiles | Opened EX-Vault 1917 | -9/Exiles | Found Prototype Processor 1918 | -9/Exiles | Identified 0b10 Alert Chip 1924 | -9/Exiles | Found Prototype Processor 1925 | -9/Exiles | Identified Modified TNC 1933 | -9/Exiles | Found Prototype Device 2003 | -9/Exiles | Identified Army-in-a-Box 2069 | -9/Exiles | Warned to stay clear of 0b10 Research branches 2121 | -9/Exiles | Met EX-DEC 2393 | -9/Exiles | Discovered new exit (range 14) 2603 | -9/Exiles | Left Exiles lab with Army-in-a-Box 2603 | -9/Exiles | Entered Mines 2681 | -8/Mines | Lost 3 parts (3n) 2723 | -8/Mines | Build established: Hauler-Mutant 2724 | -8/Mines | Destroyed by S-10 Pest with Light Assault Rifle Last Messages --------------- Acquired Aluminum Leg. Acquired Datajack. Acquired Weapon Cycler. Acquired Gatling Laser. LOCATION=UNKNOWN GOAL=ESCAPE Receiving FarCom transmissions... C-30 ARC bursts open, deploying its payload. S-10 Pest unfolds itself. S-10 Pest destroyed. Aluminum Leg destroyed. Searching scrap... Found EM Shotgun. Found Shock Rifle. Found Seismic Detector. Found Imp. Light Cannon. Found 42 Matter. Acquired 35 matter. Acquired Shock Rifle. Aluminum Leg destroyed. Map ----- +----------------------------------------------------+ | ?????????????????????????????????????????????????? | | ?????????????????????????????????????????????????? | | ?????????????????????????????????????????????????? | | ?????????????????????????????????????????????????? | | ?????????????????????????????????????????????????? | | ?????????????????????????????????????????????????? | | ?????????????????????????????????????????????????? | | ?????????????????????????????????????????????????? | | ?????????????????????????????????????????????????? | | ?????????????????????????????????????????????????? | | ?????????????????????????????????????????????????? | | ?????????????????########????????????????????????? | | ?????????????????#" #????????????????????????? | | ?????????????????#% #????????????????????????? | | ?????????????????#"% #????????????????????????? | | ?????????????????# = #????????????????????????? | | ????????????????## #????????????????????????? | | ????????????????#T #????????????????????????? | | ????????????????###### ##????????????????????????? | | ?????????????????????# ###???????????????????????? | | ?????????????????????# #???????????????????????? | | ?????????????????????### #???????????????????????? | | ???????????????????????# #???????????????????????? | | ???????????????????????# #???????????????????????? | | ?????????????????# #####[###########?????????????? | | ?????????????????# s!@% r ??????? | | ?????????????????###################?????????????? | | ?????????????????????????????????????????????????? | | ?????????????????????????????????????????????????? | | ?????????????????????????????????????????????????? | | | | | | | | | | | | | | | | | | | | | | | | | | | | | | | | | | | | | | | | | +----------------------------------------------------+ Best States ------------- Heat Dissipation 28 Energy Generation 14 Energy Capacity 160 Matter Stores 300 Matter Capacity 300 Sight Range 16 Terrain Scan Density 10 Evasion (%) 55 Item Schematics ----------------- None Robot Schematics ------------------ None Fabricated ------------ Nothing Repaired ---------- Nothing Studied --------- None Alien Tech Used ----------------- None Achievements -------------- None Challenges ------------ None Game ------ Seed AntimatterBoltAutohacker Manual? 0 Play Time 00:16:55 Cumulative 24.5 hours Start 2025.10.27 @ 13:26:41 End 2025.10.27 @ 13:48:31 Sessions 1 Manual Loads 0 Difficulty Rogue Special Mode None Game No. 80 Rogue 80 Adventurer 0 Explorer 0 Win Type - Total 0 Types 0/0/0/0/0/0/0/0/0/0 Lore% 10 Gallery% 22 Achievement% 18 Wizard Run 0 Options --------- Layout 1 ASCII 0 Keyboard 0 Movement Mouse Keybinds 0 Fullscreen 2 Font 32/SmallcapsGlow Map View 50x35 Zoom Use 0% Tactical HUD 0 Map Filters NONE Filters NONE Steam 1 RUN: bb23c70b-df5b-458a-b107-e3ae5550fbbf